[Event "Titled Tuesday Blitz July 11 Late 2023"]
[White "Sarana, Alexey"]
[Black "Vakhlamov, Igor L."]
[WhiteFideId "24133795"]
[BlackFideId "24126748"]
[WhiteElo "3046"]
[BlackElo "2773"]
[Result "1-0"]
[Round "4"]
[TimeControl "180+2"]
[Date "2023.07.11"]
[WhiteClock "0:01:23"]
[BlackClock "0:00:35"]
[Board "20"]

1. d4 {[%clk 0:03:00]}  d5 {[%clk 0:02:59]} 2. c4 {[%clk 0:03:01]}  e6 {[%clk 0:03:00]} 3. Nc3 {[%clk 0:03:01]}  c5 {[%clk 0:03:00]} 4. dxc5 {[%clk 0:03:01]}  d4 {[%clk 0:02:57]} 5. Na4 {[%clk 0:03:01]}  Bxc5 {[%clk 0:02:53]} 6. Nxc5 {[%clk 0:03:00]}  Qa5+ {[%clk 0:02:53]} 7. Bd2 {[%clk 0:02:51]}  Qxc5 {[%clk 0:02:54]} 8. e3 {[%clk 0:02:52]}  Nc6 {[%clk 0:02:44]} 9. Nf3 {[%clk 0:02:51]}  Nf6 {[%clk 0:02:40]} 10. exd4 {[%clk 0:02:42]}  Nxd4 {[%clk 0:02:41]} 11. Nxd4 {[%clk 0:02:42]}  Qxd4 {[%clk 0:02:40]} 12. Bc3 {[%clk 0:02:36]}  Qe4+ {[%clk 0:02:19]} 13. Be2 {[%clk 0:02:36]}  Bd7 {[%clk 0:02:07]} 14. O-O {[%clk 0:02:34]}  Bc6 {[%clk 0:02:05]} 15. f3 {[%clk 0:02:11]}  Qe3+ {[%clk 0:02:05]} 16. Rf2 {[%clk 0:02:12]}  Rd8 {[%clk 0:02:00]} 17. Qc1 {[%clk 0:02:11]}  Qxc1+ {[%clk 0:01:52]} 18. Rxc1 {[%clk 0:02:12]}  O-O {[%clk 0:01:50]} 19. b4 {[%clk 0:02:13]}  b6 {[%clk 0:01:49]} 20. Bf1 {[%clk 0:02:09]}  Rfe8 {[%clk 0:01:48]} 21. a4 {[%clk 0:02:08]}  Rd7 {[%clk 0:01:26]} 22. a5 {[%clk 0:02:05]}  bxa5 {[%clk 0:01:27]} 23. b5 {[%clk 0:02:04]}  Ba8 {[%clk 0:01:25]} 24. Bxa5 {[%clk 0:02:05]}  Rc8 {[%clk 0:01:25]} 25. c5 {[%clk 0:02:05]}  Bd5 {[%clk 0:01:23]} 26. c6 {[%clk 0:02:04]}  Re7 {[%clk 0:01:24]} 27. Rfc2 {[%clk 0:02:02]}  Ne8 {[%clk 0:01:18]} 28. Bb4 {[%clk 0:02:01]}  Rec7 {[%clk 0:01:19]} 29. Ra1 {[%clk 0:02:00]}  f6 {[%clk 0:01:17]} 30. Bc5 {[%clk 0:01:55]}  Ra8 {[%clk 0:00:50]} 31. Bb6 {[%clk 0:01:46]}  Re7 {[%clk 0:00:48]} 32. c7 {[%clk 0:01:42]}  Nd6 {[%clk 0:00:37]} 33. Rxa7 {[%clk 0:01:40]}  Rc8 {[%clk 0:00:37]} 34. Ba5 {[%clk 0:01:31]}  Nb7 {[%clk 0:00:34]} 35. b6 {[%clk 0:01:30]}  Kf7 {[%clk 0:00:34]} 36. Bb4 {[%clk 0:01:30]}  Rd7 {[%clk 0:00:33]} 37. Bb5 {[%clk 0:01:29]}  Rdxc7 {[%clk 0:00:33]} 38. Rxc7+ {[%clk 0:01:28]}  Kg6 {[%clk 0:00:34]} 39. Rxc8 {[%clk 0:01:28]}  Kf5 {[%clk 0:00:34]} 40. Rc7 {[%clk 0:01:23]}  Kf4 {[%clk 0:00:35]} 1-0


[Site "https://www.chess.com"]

[Event "Titled Tuesday Blitz July 11 Late 2023"]
[White "Leitao, Rafael"]
[Black "Deac, Bogdan-Daniel"]
[WhiteFideId "2101246"]
[BlackFideId "1226380"]
[WhiteElo "2757"]
[BlackElo "2989"]
[Result "0-1"]
[Round "4"]
[TimeControl "180+2"]
[Date "2023.07.11"]
[WhiteClock "0:00:00"]
[BlackClock "0:00:03"]
[Board "21"]

1. c4 {[%clk 0:03:00]}  e6 {[%clk 0:02:59]} 2. g3 {[%clk 0:03:00]}  d5 {[%clk 0:02:59]} 3. Bg2 {[%clk 0:03:00]}  Nf6 {[%clk 0:03:00]} 4. Nf3 {[%clk 0:03:01]}  Be7 {[%clk 0:03:01]} 5. O-O {[%clk 0:03:01]}  O-O {[%clk 0:03:02]} 6. b3 {[%clk 0:03:01]}  a5 {[%clk 0:03:01]} 7. Ba3 {[%clk 0:02:58]}  a4 {[%clk 0:02:45]} 8. Bxe7 {[%clk 0:02:56]}  Qxe7 {[%clk 0:02:46]} 9. Nc3 {[%clk 0:02:56]}  axb3 {[%clk 0:02:45]} 10. axb3 {[%clk 0:02:55]}  Rxa1 {[%clk 0:02:39]} 11. Qxa1 {[%clk 0:02:56]}  c6 {[%clk 0:02:39]} 12. d4 {[%clk 0:02:40]}  Nbd7 {[%clk 0:02:39]} 13. Rc1 {[%clk 0:02:33]}  Re8 {[%clk 0:02:36]} 14. e3 {[%clk 0:02:31]}  h6 {[%clk 0:02:13]} 15. Qa7 {[%clk 0:02:05]}  Qb4 {[%clk 0:01:40]} 16. Qa4 {[%clk 0:01:59]}  Qxa4 {[%clk 0:01:34]} 17. Nxa4 {[%clk 0:01:57]}  Ne4 {[%clk 0:01:31]} 18. Nb2 {[%clk 0:01:17]}  f6 {[%clk 0:01:16]} 19. Nd3 {[%clk 0:01:11]}  Kf7 {[%clk 0:01:15]} 20. Bf1 {[%clk 0:01:04]}  g5 {[%clk 0:01:15]} 21. h3 {[%clk 0:00:52]}  h5 {[%clk 0:01:13]} 22. Be2 {[%clk 0:00:46]}  Ke7 {[%clk 0:01:00]} 23. h4 {[%clk 0:00:40]}  g4 {[%clk 0:00:56]} 24. Nfe1 {[%clk 0:00:40]}  e5 {[%clk 0:00:26]} 25. cxd5 {[%clk 0:00:39]}  cxd5 {[%clk 0:00:26]} 26. Nb4 {[%clk 0:00:35]}  Kd6 {[%clk 0:00:25]} 27. dxe5+ {[%clk 0:00:28]}  fxe5 {[%clk 0:00:24]} 28. Rd1 {[%clk 0:00:28]}  Nb6 {[%clk 0:00:21]} 29. Ned3 {[%clk 0:00:20]}  Nc3 {[%clk 0:00:19]} 30. Rd2 {[%clk 0:00:20]}  Nxe2+ {[%clk 0:00:19]} 31. Rxe2 {[%clk 0:00:20]}  Bf5 {[%clk 0:00:20]} 32. Rc2 {[%clk 0:00:18]}  Ra8 {[%clk 0:00:17]} 33. Kf1 {[%clk 0:00:18]}  Ra3 {[%clk 0:00:12]} 34. Rb2 {[%clk 0:00:12]}  Nd7 {[%clk 0:00:08]} 35. Ke2 {[%clk 0:00:12]}  Nf6 {[%clk 0:00:09]} 36. Nc2 {[%clk 0:00:11]}  Ra8 {[%clk 0:00:08]} 37. Ndb4 {[%clk 0:00:12]}  Ne4 {[%clk 0:00:07]} 38. Ne1 {[%clk 0:00:09]}  Nc3+ {[%clk 0:00:05]} 39. Kd2 {[%clk 0:00:09]}  Ne4+ {[%clk 0:00:05]} 40. Ke2 {[%clk 0:00:10]}  Ra1 {[%clk 0:00:06]} 41. Nbc2 {[%clk 0:00:09]}  Rc1 {[%clk 0:00:05]} 42. Nd3 {[%clk 0:00:07]}  Rh1 {[%clk 0:00:05]} 43. Nce1 {[%clk 0:00:07]}  Nc3+ {[%clk 0:00:05]} 44. Kd2 {[%clk 0:00:07]}  Ne4+ {[%clk 0:00:06]} 45. Ke2 {[%clk 0:00:08]}  b6 {[%clk 0:00:06]} 46. b4 {[%clk 0:00:06]}  Bd7 {[%clk 0:00:06]} 47. b5 {[%clk 0:00:05]}  Bxb5 {[%clk 0:00:06]} 48. Rb3 {[%clk 0:00:00]}  Kc7 {[%clk 0:00:03]} 0-1


[Site "https://www.chess.com"]

[Event "Titled Tuesday Blitz July 11 Late 2023"]
[White "Cugimura97"]
[Black "Oparin, Grigoriy"]
[BlackFideId "24125890"]
[WhiteElo "2705"]
[BlackElo "2983"]
[Result "0-1"]
[Round "4"]
[TimeControl "180+2"]
[Date "2023.07.11"]
[WhiteClock "0:00:22"]
[BlackClock "0:00:13"]
[Board "22"]

1. d4 {[%clk 0:03:00]}  Nf6 {[%clk 0:03:00]} 2. c4 {[%clk 0:02:59]}  e6 {[%clk 0:03:00]} 3. Nf3 {[%clk 0:02:58]}  b6 {[%clk 0:03:01]} 4. Nc3 {[%clk 0:02:57]}  Bb7 {[%clk 0:03:01]} 5. g3 {[%clk 0:02:56]}  Bb4 {[%clk 0:03:00]} 6. Bd2 {[%clk 0:02:54]}  O-O {[%clk 0:03:01]} 7. Bg2 {[%clk 0:02:54]}  d6 {[%clk 0:02:56]} 8. O-O {[%clk 0:02:52]}  Nbd7 {[%clk 0:02:57]} 9. a3 {[%clk 0:02:51]}  Bxc3 {[%clk 0:02:57]} 10. Bxc3 {[%clk 0:02:50]}  Ne4 {[%clk 0:02:58]} 11. Qc2 {[%clk 0:02:49]}  Nxc3 {[%clk 0:02:56]} 12. Qxc3 {[%clk 0:02:49]}  Qe7 {[%clk 0:02:54]} 13. Nd2 {[%clk 0:02:45]}  Bxg2 {[%clk 0:02:54]} 14. Kxg2 {[%clk 0:02:46]}  e5 {[%clk 0:02:53]} 15. dxe5 {[%clk 0:02:43]}  Nxe5 {[%clk 0:02:52]} 16. Nf3 {[%clk 0:02:36]}  Nd7 {[%clk 0:02:31]} 17. e3 {[%clk 0:02:28]}  f5 {[%clk 0:02:22]} 18. Rad1 {[%clk 0:02:25]}  a5 {[%clk 0:02:20]} 19. Qd3 {[%clk 0:02:20]}  a4 {[%clk 0:02:17]} 20. Qd5+ {[%clk 0:02:19]}  Kh8 {[%clk 0:02:05]} 21. Nd4 {[%clk 0:02:09]}  Ra5 {[%clk 0:01:56]} 22. Qb7 {[%clk 0:01:47]}  Nc5 {[%clk 0:01:48]} 23. Qc6 {[%clk 0:01:45]}  g5 {[%clk 0:01:33]} 24. Nb5 {[%clk 0:01:39]}  Rf7 {[%clk 0:01:33]} 25. Nc3 {[%clk 0:01:37]}  Kg7 {[%clk 0:01:25]} 26. Rfe1 {[%clk 0:01:37]}  Ne4 {[%clk 0:01:13]} 27. Nd5 {[%clk 0:01:32]}  Qd8 {[%clk 0:01:05]} 28. f3 {[%clk 0:01:21]}  Nf6 {[%clk 0:01:01]} 29. f4 {[%clk 0:01:17]}  Ne4 {[%clk 0:00:54]} 30. Nc3 {[%clk 0:01:06]}  Nxc3 {[%clk 0:00:52]} 31. bxc3 {[%clk 0:01:07]}  Qf6 {[%clk 0:00:50]} 32. Rd3 {[%clk 0:01:00]}  Re7 {[%clk 0:00:50]} 33. Kf2 {[%clk 0:00:50]}  h6 {[%clk 0:00:50]} 34. h3 {[%clk 0:00:47]}  Kg6 {[%clk 0:00:39]} 35. Qf3 {[%clk 0:00:45]}  Rc5 {[%clk 0:00:37]} 36. Rd4 {[%clk 0:00:46]}  Qf7 {[%clk 0:00:35]} 37. e4 {[%clk 0:00:44]}  gxf4 {[%clk 0:00:30]} 38. exf5+ {[%clk 0:00:41]}  Rxf5 {[%clk 0:00:30]} 39. gxf4 {[%clk 0:00:41]}  Rxe1 {[%clk 0:00:26]} 40. Kxe1 {[%clk 0:00:42]}  Qd7 {[%clk 0:00:21]} 41. Re4 {[%clk 0:00:41]}  Rf7 {[%clk 0:00:20]} 42. Kf2 {[%clk 0:00:38]}  Kh7 {[%clk 0:00:19]} 43. Qg4 {[%clk 0:00:37]}  Qc6 {[%clk 0:00:13]} 44. Re6 {[%clk 0:00:34]}  Qc5+ {[%clk 0:00:13]} 45. Kg3 {[%clk 0:00:31]}  Rg7 {[%clk 0:00:13]} 46. f5 {[%clk 0:00:24]}  Rxg4+ {[%clk 0:00:13]} 47. hxg4 {[%clk 0:00:22]}  Qxc4 {[%clk 0:00:13]} 0-1


[Site "https://www.chess.com"]

[Event "Titled Tuesday Blitz July 11 Late 2023"]
[White "Sviridov, Valery"]
[Black "Matinian, Nikita"]
[WhiteFideId "4120680"]
[BlackFideId "24129100"]
[WhiteElo "2966"]
[BlackElo "2692"]
[Result "1-0"]
[Round "4"]
[TimeControl "180+2"]
[Date "2023.07.11"]
[WhiteClock "0:00:35"]
[BlackClock "0:00:01"]
[Board "23"]

1. d4 {[%clk 0:03:00]}  Nf6 {[%clk 0:02:59]} 2. Nc3 {[%clk 0:03:01]}  d5 {[%clk 0:02:58]} 3. Bf4 {[%clk 0:03:01]}  c6 {[%clk 0:02:57]} 4. e3 {[%clk 0:03:01]}  g6 {[%clk 0:02:57]} 5. h4 {[%clk 0:03:01]}  h5 {[%clk 0:02:57]} 6. Nf3 {[%clk 0:03:00]}  Nbd7 {[%clk 0:02:56]} 7. Be2 {[%clk 0:03:00]}  Bg7 {[%clk 0:02:56]} 8. Qd2 {[%clk 0:02:59]}  b5 {[%clk 0:02:53]} 9. Ne5 {[%clk 0:02:59]}  Qb6 {[%clk 0:02:45]} 10. a4 {[%clk 0:02:58]}  b4 {[%clk 0:02:44]} 11. Na2 {[%clk 0:02:56]}  a5 {[%clk 0:02:42]} 12. f3 {[%clk 0:02:56]}  c5 {[%clk 0:02:39]} 13. Bb5 {[%clk 0:02:43]}  c4 {[%clk 0:02:25]} 14. c3 {[%clk 0:02:27]}  b3 {[%clk 0:02:25]} 15. Nc1 {[%clk 0:02:28]}  O-O {[%clk 0:02:26]} 16. Ne2 {[%clk 0:02:26]}  Rd8 {[%clk 0:01:49]} 17. O-O {[%clk 0:02:19]}  Ba6 {[%clk 0:01:46]} 18. Nxd7 {[%clk 0:02:01]}  Nxd7 {[%clk 0:01:45]} 19. Bxd7 {[%clk 0:02:02]}  Rxd7 {[%clk 0:01:45]} 20. Be5 {[%clk 0:02:01]}  f6 {[%clk 0:01:44]} 21. Bg3 {[%clk 0:02:01]}  e5 {[%clk 0:01:41]} 22. f4 {[%clk 0:01:58]}  e4 {[%clk 0:01:34]} 23. f5 {[%clk 0:01:58]}  g5 {[%clk 0:01:34]} 24. hxg5 {[%clk 0:01:54]}  fxg5 {[%clk 0:01:35]} 25. Be5 {[%clk 0:01:55]}  Rf7 {[%clk 0:01:35]} 26. Ng3 {[%clk 0:01:54]}  Qh6 {[%clk 0:01:26]} 27. Qe2 {[%clk 0:01:43]}  g4 {[%clk 0:01:26]} 28. f6 {[%clk 0:01:37]}  Bxf6 {[%clk 0:01:20]} 29. Bxf6 {[%clk 0:01:37]}  Rxf6 {[%clk 0:01:21]} 30. Rxf6 {[%clk 0:01:37]}  Qxf6 {[%clk 0:01:22]} 31. Nxh5 {[%clk 0:01:38]}  Qg5 {[%clk 0:01:21]} 32. Qxg4 {[%clk 0:01:37]}  Qxg4 {[%clk 0:01:22]} 33. Nf6+ {[%clk 0:01:38]}  Kg7 {[%clk 0:01:20]} 34. Nxg4 {[%clk 0:01:39]}  Rf8 {[%clk 0:01:15]} 35. Ne5 {[%clk 0:01:39]}  Bb7 {[%clk 0:00:51]} 36. Rf1 {[%clk 0:01:39]}  Rf6 {[%clk 0:00:46]} 37. g4 {[%clk 0:01:35]}  Ba6 {[%clk 0:00:43]} 38. Rxf6 {[%clk 0:01:23]}  Kxf6 {[%clk 0:00:44]} 39. Nc6 {[%clk 0:01:24]}  Bc8 {[%clk 0:00:32]} 40. Nxa5 {[%clk 0:01:24]}  Bd7 {[%clk 0:00:32]} 41. Kf2 {[%clk 0:01:24]}  Bxa4 {[%clk 0:00:28]} 42. Kg3 {[%clk 0:01:23]}  Kg5 {[%clk 0:00:27]} 43. Nb7 {[%clk 0:00:52]}  Bd7 {[%clk 0:00:27]} 44. Nd8 {[%clk 0:00:53]}  Bxg4 {[%clk 0:00:27]} 45. Nf7+ {[%clk 0:00:53]}  Kh5 {[%clk 0:00:26]} 46. Kf4 {[%clk 0:00:54]}  Be6 {[%clk 0:00:23]} 47. Nd8 {[%clk 0:00:50]}  Bg8 {[%clk 0:00:21]} 48. Nc6 {[%clk 0:00:48]}  Kh4 {[%clk 0:00:21]} 49. Ne7 {[%clk 0:00:46]}  Bf7 {[%clk 0:00:21]} 50. Nf5+ {[%clk 0:00:42]}  Kh3 {[%clk 0:00:21]} 51. Ke5 {[%clk 0:00:38]}  Kg2 {[%clk 0:00:20]} 52. Nh6 {[%clk 0:00:39]}  Kf3 {[%clk 0:00:13]} 53. Nxf7 {[%clk 0:00:32]}  Kxe3 {[%clk 0:00:13]} 54. Kxd5 {[%clk 0:00:33]}  Kd2 {[%clk 0:00:06]} 55. Ne5 {[%clk 0:00:34]}  e3 {[%clk 0:00:03]} 56. Nxc4+ {[%clk 0:00:34]}  Kc2 {[%clk 0:00:02]} 57. Nxe3+ {[%clk 0:00:34]}  Kxb2 {[%clk 0:00:03]} 58. Nc4+ {[%clk 0:00:34]}  Kxc3 {[%clk 0:00:03]} 59. Kc5 {[%clk 0:00:35]}  Kd3 {[%clk 0:00:01]} 60. d5 {[%clk 0:00:35]} 1-0


[Site "https://www.chess.com"]

[Event "Titled Tuesday Blitz July 11 Late 2023"]
[White "Kantans, Toms"]
[Black "Zakhartsov, Vladimir"]
[WhiteFideId "11602945"]
[BlackFideId "4145097"]
[WhiteElo "2630"]
[BlackElo "2931"]
[Result "1/2-1/2"]
[Round "4"]
[TimeControl "180+2"]
[Date "2023.07.11"]
[WhiteClock "0:00:03"]
[BlackClock "0:00:25"]
[Board "25"]

1. e4 {[%clk 0:02:59]}  g6 {[%clk 0:02:38]} 2. d4 {[%clk 0:02:59]}  Bg7 {[%clk 0:02:38]} 3. Nc3 {[%clk 0:02:59]}  d6 {[%clk 0:02:38]} 4. f4 {[%clk 0:02:59]}  a6 {[%clk 0:02:29]} 5. Nf3 {[%clk 0:02:59]}  Nd7 {[%clk 0:02:29]} 6. e5 {[%clk 0:02:55]}  c5 {[%clk 0:02:27]} 7. exd6 {[%clk 0:02:42]}  cxd4 {[%clk 0:02:24]} 8. Nxd4 {[%clk 0:02:43]}  exd6 {[%clk 0:02:24]} 9. Be3 {[%clk 0:02:43]}  Ngf6 {[%clk 0:02:23]} 10. Qd2 {[%clk 0:02:42]}  O-O {[%clk 0:02:23]} 11. O-O-O {[%clk 0:02:42]}  Nc5 {[%clk 0:02:22]} 12. Nb3 {[%clk 0:02:22]}  Nxb3+ {[%clk 0:02:13]} 13. axb3 {[%clk 0:02:21]}  Qa5 {[%clk 0:02:11]} 14. Kb1 {[%clk 0:02:20]}  Bf5 {[%clk 0:02:09]} 15. Bd3 {[%clk 0:02:16]}  Rac8 {[%clk 0:01:57]} 16. Bxf5 {[%clk 0:02:14]}  Qxf5 {[%clk 0:01:58]} 17. Qd3 {[%clk 0:02:14]}  Qa5 {[%clk 0:01:54]} 18. Bd4 {[%clk 0:02:14]}  Rc6 {[%clk 0:01:48]} 19. Rhe1 {[%clk 0:02:12]}  Rfc8 {[%clk 0:01:45]} 20. Re2 {[%clk 0:02:12]}  b5 {[%clk 0:01:43]} 21. Bxf6 {[%clk 0:02:04]}  Bxf6 {[%clk 0:01:43]} 22. Nd5 {[%clk 0:02:04]}  Bd8 {[%clk 0:01:18]} 23. Re8+ {[%clk 0:01:38]}  Kg7 {[%clk 0:01:19]} 24. Qd4+ {[%clk 0:00:47]}  Kh6 {[%clk 0:01:19]} 25. g4 {[%clk 0:00:24]}  Rxc2 {[%clk 0:00:46]} 26. g5+ {[%clk 0:00:24]}  Kh5 {[%clk 0:00:46]} 27. Qe3 {[%clk 0:00:17]}  Rxh2 {[%clk 0:00:31]} 28. Qf3+ {[%clk 0:00:09]}  Kh4 {[%clk 0:00:31]} 29. Re3 {[%clk 0:00:08]}  Rcc2 {[%clk 0:00:23]} 30. Qg3+ {[%clk 0:00:02]}  Kh5 {[%clk 0:00:23]} 31. Qf3+ {[%clk 0:00:03]}  Kh4 {[%clk 0:00:24]} 32. Qg3+ {[%clk 0:00:03]}  Kh5 {[%clk 0:00:25]} 33. Qf3+ {[%clk 0:00:03]}  Kh4 {[%clk 0:00:25]} 1/2-1/2


[Site "https://www.chess.com"]

[Event "Titled Tuesday Blitz July 11 Late 2023"]
[White "Keleberda, Tymur"]
[Black "Maksimovic, Bojan"]
[WhiteFideId "14174294"]
[BlackFideId "14408120"]
[WhiteElo "2547"]
[BlackElo "2846"]
[Result "1/2-1/2"]
[Round "4"]
[TimeControl "180+2"]
[Date "2023.07.11"]
[WhiteClock "0:00:11"]
[BlackClock "0:00:06"]
[Board "27"]

1. e4 {[%clk 0:03:00]}  g6 {[%clk 0:02:59]} 2. d4 {[%clk 0:03:00]}  Nf6 {[%clk 0:02:59]} 3. Nc3 {[%clk 0:02:59]}  d5 {[%clk 0:03:00]} 4. e5 {[%clk 0:02:57]}  Ne4 {[%clk 0:02:59]} 5. Nce2 {[%clk 0:02:55]}  f6 {[%clk 0:02:58]} 6. f3 {[%clk 0:02:36]}  Ng5 {[%clk 0:02:56]} 7. Bxg5 {[%clk 0:02:32]}  fxg5 {[%clk 0:02:57]} 8. c3 {[%clk 0:02:16]}  c5 {[%clk 0:02:57]} 9. Qd2 {[%clk 0:02:09]}  Nc6 {[%clk 0:02:57]} 10. dxc5 {[%clk 0:01:36]}  Nxe5 {[%clk 0:02:54]} 11. Nd4 {[%clk 0:01:35]}  e6 {[%clk 0:02:36]} 12. Bb5+ {[%clk 0:01:26]}  Kf7 {[%clk 0:02:36]} 13. b4 {[%clk 0:01:17]}  Bg7 {[%clk 0:02:12]} 14. Nh3 {[%clk 0:01:17]}  h6 {[%clk 0:02:12]} 15. O-O {[%clk 0:01:14]}  Kg8 {[%clk 0:02:01]} 16. f4 {[%clk 0:01:06]}  gxf4 {[%clk 0:01:54]} 17. Nxf4 {[%clk 0:01:07]}  Qe7 {[%clk 0:01:54]} 18. Rae1 {[%clk 0:00:46]}  g5 {[%clk 0:01:53]} 19. Nd3 {[%clk 0:00:46]}  Nxd3 {[%clk 0:01:41]} 20. Bxd3 {[%clk 0:00:46]}  e5 {[%clk 0:01:34]} 21. Nf5 {[%clk 0:00:44]}  Bxf5 {[%clk 0:01:35]} 22. Bxf5 {[%clk 0:00:38]}  Rd8 {[%clk 0:01:35]} 23. Rd1 {[%clk 0:00:34]}  Bf6 {[%clk 0:01:27]} 24. c4 {[%clk 0:00:29]}  d4 {[%clk 0:01:12]} 25. Qd3 {[%clk 0:00:30]}  Kg7 {[%clk 0:01:12]} 26. a3 {[%clk 0:00:29]}  h5 {[%clk 0:01:06]} 27. g3 {[%clk 0:00:26]}  g4 {[%clk 0:01:04]} 28. Qe4 {[%clk 0:00:25]}  Bg5 {[%clk 0:01:02]} 29. Kg2 {[%clk 0:00:25]}  Be3 {[%clk 0:00:58]} 30. c6 {[%clk 0:00:18]}  bxc6 {[%clk 0:00:57]} 31. Qxc6 {[%clk 0:00:19]}  Rd6 {[%clk 0:00:56]} 32. Qe4 {[%clk 0:00:19]}  Rf8 {[%clk 0:00:52]} 33. c5 {[%clk 0:00:19]}  Rdf6 {[%clk 0:00:52]} 34. Bh7 {[%clk 0:00:17]}  Rf2+ {[%clk 0:00:47]} 35. Rxf2 {[%clk 0:00:15]}  Rxf2+ {[%clk 0:00:48]} 36. Kh1 {[%clk 0:00:16]}  Qf6 {[%clk 0:00:48]} 37. Qb7+ {[%clk 0:00:13]}  Kh6 {[%clk 0:00:49]} 38. Bd3 {[%clk 0:00:13]}  Kg5 {[%clk 0:00:21]} 39. Qa8 {[%clk 0:00:13]}  Qf7 {[%clk 0:00:10]} 40. Qe4 {[%clk 0:00:11]}  Qf6 {[%clk 0:00:06]} 41. Qa8 {[%clk 0:00:11]}  Qf7 {[%clk 0:00:06]} 42. Qe4 {[%clk 0:00:11]}  Qf6 {[%clk 0:00:06]} 43. Qa8 {[%clk 0:00:11]} 1/2-1/2


[Site "https://www.chess.com"]

[Event "Titled Tuesday Blitz July 11 Late 2023"]
[White "Andreassen, Lars"]
[Black "Elsa167"]
[WhiteFideId "1504878"]
[WhiteElo "2394"]
[BlackElo "2824"]
[Result "1-0"]
[Round "4"]
[TimeControl "180+2"]
[Date "2023.07.11"]
[WhiteClock "0:00:57"]
[BlackClock "0:00:00"]
[Board "28"]

1. d4 {[%clk 0:02:54]}  Nf6 {[%clk 0:02:59]} 2. Nf3 {[%clk 0:02:54]}  e6 {[%clk 0:02:56]} 3. Bg5 {[%clk 0:02:54]}  c5 {[%clk 0:02:53]} 4. e3 {[%clk 0:02:54]}  cxd4 {[%clk 0:02:53]} 5. exd4 {[%clk 0:02:54]}  b6 {[%clk 0:02:54]} 6. Bd3 {[%clk 0:02:52]}  Bb7 {[%clk 0:02:54]} 7. Nbd2 {[%clk 0:02:52]}  Be7 {[%clk 0:02:55]} 8. O-O {[%clk 0:02:52]}  d6 {[%clk 0:02:55]} 9. Re1 {[%clk 0:02:53]}  Nbd7 {[%clk 0:02:56]} 10. c3 {[%clk 0:02:53]}  O-O {[%clk 0:02:55]} 11. Qe2 {[%clk 0:02:54]}  a6 {[%clk 0:02:55]} 12. Rad1 {[%clk 0:02:52]}  Re8 {[%clk 0:02:55]} 13. a4 {[%clk 0:02:52]}  Qc8 {[%clk 0:02:44]} 14. h3 {[%clk 0:02:51]}  Bc6 {[%clk 0:02:45]} 15. Ne4 {[%clk 0:02:47]}  Qb7 {[%clk 0:02:03]} 16. b3 {[%clk 0:02:39]}  Nxe4 {[%clk 0:01:42]} 17. Bxe4 {[%clk 0:02:38]}  Bxe4 {[%clk 0:01:42]} 18. Qxe4 {[%clk 0:02:38]}  Qxe4 {[%clk 0:01:43]} 19. Rxe4 {[%clk 0:02:39]}  Bxg5 {[%clk 0:01:44]} 20. Nxg5 {[%clk 0:02:39]}  Rec8 {[%clk 0:01:43]} 21. c4 {[%clk 0:02:32]}  d5 {[%clk 0:01:39]} 22. cxd5 {[%clk 0:02:30]}  Nf6 {[%clk 0:01:40]} 23. Rf4 {[%clk 0:02:13]}  Nxd5 {[%clk 0:01:30]} 24. Rf3 {[%clk 0:02:01]}  Rc7 {[%clk 0:01:30]} 25. h4 {[%clk 0:01:55]}  Rac8 {[%clk 0:01:25]} 26. h5 {[%clk 0:01:52]}  h6 {[%clk 0:01:24]} 27. Ne4 {[%clk 0:01:52]}  Rc1 {[%clk 0:01:18]} 28. Rxc1 {[%clk 0:01:52]}  Rxc1+ {[%clk 0:01:19]} 29. Kh2 {[%clk 0:01:52]}  f5 {[%clk 0:00:49]} 30. Nd6 {[%clk 0:01:48]}  Rd1 {[%clk 0:00:48]} 31. Nc8 {[%clk 0:01:29]}  Rxd4 {[%clk 0:00:47]} 32. g3 {[%clk 0:01:28]}  Kf7 {[%clk 0:00:43]} 33. Nd6+ {[%clk 0:01:12]}  Ke7 {[%clk 0:00:42]} 34. Nc4 {[%clk 0:01:12]}  Kf6 {[%clk 0:00:38]} 35. Nd6 {[%clk 0:01:06]}  Kg5 {[%clk 0:00:29]} 36. Ne8 {[%clk 0:01:06]}  g6 {[%clk 0:00:09]} 37. hxg6 {[%clk 0:01:06]}  Kxg6 {[%clk 0:00:09]} 38. Nd6 {[%clk 0:01:03]}  Nf6 {[%clk 0:00:07]} 39. Nc4 {[%clk 0:01:01]}  Nd5 {[%clk 0:00:05]} 40. Ne5+ {[%clk 0:00:57]}  Kf6 {[%clk 0:00:05]} 41. Nd7+ {[%clk 0:00:57]}  Ke7 {[%clk 0:00:05]} 42. Ne5 {[%clk 0:00:57]}  h5 {[%clk 0:00:00]} 43. Nc6+ {[%clk 0:00:57]} 1-0


[Site "https://www.chess.com"]

[Event "Titled Tuesday Blitz July 11 Late 2023"]
[White "Erigaisi Arjun"]
[Black "Pinheiro, Iung Alicio de O."]
[WhiteFideId "35009192"]
[BlackFideId "2104350"]
[WhiteElo "3083"]
[BlackElo "2568"]
[Result "1-0"]
[Round "4"]
[TimeControl "180+2"]
[Date "2023.07.11"]
[WhiteClock "0:00:34"]
[BlackClock "0:00:00"]
[Board "30"]

1. b3 {[%clk 0:01:48]}  d5 {[%clk 0:02:56]} 2. Bb2 {[%clk 0:01:49]}  Bg4 {[%clk 0:02:55]} 3. c4 {[%clk 0:01:49]}  e6 {[%clk 0:02:44]} 4. h3 {[%clk 0:01:49]}  Bf5 {[%clk 0:02:41]} 5. Nf3 {[%clk 0:01:49]}  h6 {[%clk 0:02:40]} 6. e3 {[%clk 0:01:49]}  Nf6 {[%clk 0:02:39]} 7. a3 {[%clk 0:01:48]}  a5 {[%clk 0:02:37]} 8. Nc3 {[%clk 0:01:47]}  Be7 {[%clk 0:02:33]} 9. d4 {[%clk 0:01:43]}  Nbd7 {[%clk 0:02:27]} 10. Bd3 {[%clk 0:01:42]}  Bxd3 {[%clk 0:02:23]} 11. Qxd3 {[%clk 0:01:43]}  c6 {[%clk 0:02:23]} 12. O-O {[%clk 0:01:32]}  Qb6 {[%clk 0:02:15]} 13. c5 {[%clk 0:01:29]}  Qc7 {[%clk 0:01:55]} 14. b4 {[%clk 0:01:28]}  O-O {[%clk 0:01:53]} 15. b5 {[%clk 0:01:26]}  b6 {[%clk 0:01:51]} 16. cxb6 {[%clk 0:01:23]}  Qxb6 {[%clk 0:01:43]} 17. a4 {[%clk 0:01:21]}  c5 {[%clk 0:01:33]} 18. e4 {[%clk 0:01:18]}  dxe4 {[%clk 0:01:08]} 19. Nxe4 {[%clk 0:01:18]}  Rfd8 {[%clk 0:01:03]} 20. Rfd1 {[%clk 0:01:14]}  Rac8 {[%clk 0:01:00]} 21. Rac1 {[%clk 0:01:10]}  Nd5 {[%clk 0:00:45]} 22. Ne5 {[%clk 0:01:03]}  Nxe5 {[%clk 0:00:40]} 23. dxe5 {[%clk 0:01:04]}  Nb4 {[%clk 0:00:40]} 24. Qg3 {[%clk 0:01:03]}  Rxd1+ {[%clk 0:00:30]} 25. Rxd1 {[%clk 0:01:04]}  Rd8 {[%clk 0:00:30]} 26. Rd6 {[%clk 0:00:59]}  Qb8 {[%clk 0:00:17]} 27. Nxc5 {[%clk 0:00:57]}  Nd5 {[%clk 0:00:14]} 28. Ne4 {[%clk 0:00:53]}  Kh8 {[%clk 0:00:08]} 29. Qf3 {[%clk 0:00:44]}  Kg8 {[%clk 0:00:08]} 30. Rxd8+ {[%clk 0:00:43]}  Qxd8 {[%clk 0:00:08]} 31. Bd4 {[%clk 0:00:42]}  Nb4 {[%clk 0:00:07]} 32. Qc3 {[%clk 0:00:40]}  Qd5 {[%clk 0:00:07]} 33. Nd6 {[%clk 0:00:34]}  Bxd6 {[%clk 0:00:03]} 34. exd6 {[%clk 0:00:35]}  f6 {[%clk 0:00:04]} 35. Qc5 {[%clk 0:00:34]}  Qe4 {[%clk 0:00:00]} 36. d7 {[%clk 0:00:34]} 1-0


[Site "https://www.chess.com"]